[Event "December 12 Early 2023"]
[Site "https://www.chess.com"]
[Date "2023.12.12"]
[Round "1"]
[White "Koelle, Tobias"]
[Black "GMFYHR1"]
[Result "0-1"]
[Board "61"]
[TimeControl "180+1"]
[WhiteFideId "16207378"]
[WhiteElo "2834"]
[BlackElo "2469"]
[WhiteTeam "GER"]
[WhiteClock "0:00:14"]
[BlackClock "0:00:14"]

1. Nf3 {[%clk 0:03:00]}  Nf6 {[%clk 0:02:58]} 2. c4 {[%clk 0:02:58]}  g6 {[%clk 0:02:55]} 3. g3 {[%clk 0:02:56]}  Bg7 {[%clk 0:02:55]} 4. Bg2 {[%clk 0:02:56]}  O-O {[%clk 0:02:56]} 5. O-O {[%clk 0:02:56]}  c6 {[%clk 0:02:56]} 6. b3 {[%clk 0:02:38]}  Ne4 {[%clk 0:02:52]} 7. d4 {[%clk 0:02:38]}  d5 {[%clk 0:02:52]} 8. Bb2 {[%clk 0:02:37]}  Bf5 {[%clk 0:02:51]} 9. Nc3 {[%clk 0:02:30]}  Nxc3 {[%clk 0:02:43]} 10. Bxc3 {[%clk 0:02:29]}  dxc4 {[%clk 0:02:43]} 11. bxc4 {[%clk 0:02:23]}  Nd7 {[%clk 0:02:43]} 12. Re1 {[%clk 0:02:19]}  Nb6 {[%clk 0:02:43]} 13. Qb3 {[%clk 0:02:13]}  Be6 {[%clk 0:02:43]} 14. Nd2 {[%clk 0:02:11]}  Bxd4 {[%clk 0:02:41]} 15. Red1 {[%clk 0:02:00]}  Bxc3 {[%clk 0:02:38]} 16. Qxc3 {[%clk 0:02:01]}  Qc7 {[%clk 0:02:38]} 17. h4 {[%clk 0:02:00]}  h5 {[%clk 0:02:37]} 18. c5 {[%clk 0:01:47]}  Nd5 {[%clk 0:02:36]} 19. Qb2 {[%clk 0:01:43]}  Rfd8 {[%clk 0:02:24]} 20. Nf3 {[%clk 0:01:42]}  Bg4 {[%clk 0:02:16]} 21. Ng5 {[%clk 0:01:40]}  b6 {[%clk 0:02:06]} 22. Rdc1 {[%clk 0:01:38]}  bxc5 {[%clk 0:02:04]} 23. Rxc5 {[%clk 0:01:39]}  Rab8 {[%clk 0:02:02]} 24. Qc2 {[%clk 0:01:37]}  Qe5 {[%clk 0:01:59]} 25. Re1 {[%clk 0:01:35]}  Rb2 {[%clk 0:01:46]} 26. Qc1 {[%clk 0:01:34]}  Rxe2 {[%clk 0:01:42]} 27. Rxe2 {[%clk 0:01:34]}  Qxe2 {[%clk 0:01:42]} 28. Bf1 {[%clk 0:01:29]}  Qxa2 {[%clk 0:01:23]} 29. Rxc6 {[%clk 0:01:29]}  Nb6 {[%clk 0:01:04]} 30. Rxb6 {[%clk 0:01:01]}  axb6 {[%clk 0:00:56]} 31. Bc4 {[%clk 0:01:01]}  Rc8 {[%clk 0:00:48]} 32. Bxa2 {[%clk 0:00:31]}  Rxc1+ {[%clk 0:00:47]} 33. Kg2 {[%clk 0:00:32]}  e6 {[%clk 0:00:45]} 34. Ne4 {[%clk 0:00:23]}  Kg7 {[%clk 0:00:40]} 35. Nd6 {[%clk 0:00:23]}  Rc2 {[%clk 0:00:33]} 36. Bb3 {[%clk 0:00:22]}  Rb2 {[%clk 0:00:33]} 37. Bc4 {[%clk 0:00:21]}  Be2 {[%clk 0:00:33]} 38. Bxe2 {[%clk 0:00:15]}  Rxe2 {[%clk 0:00:33]} 39. Kf3 {[%clk 0:00:16]}  Rb2 {[%clk 0:00:29]} 40. Nc4 {[%clk 0:00:15]}  Rb3+ {[%clk 0:00:29]} 41. Ke2 {[%clk 0:00:15]}  b5 {[%clk 0:00:29]} 42. Ne5 {[%clk 0:00:14]}  b4 {[%clk 0:00:27]} 43. Kd1 {[%clk 0:00:13]}  Rb2 {[%clk 0:00:26]} 44. Nd3 {[%clk 0:00:13]}  Rb3 {[%clk 0:00:20]} 45. Nc5 {[%clk 0:00:13]}  Rc3 {[%clk 0:00:18]} 46. Ne4 {[%clk 0:00:13]}  Rc7 {[%clk 0:00:18]} 47. Ke2 {[%clk 0:00:12]}  b3 {[%clk 0:00:18]} 48. Nd6 {[%clk 0:00:13]}  Kf8 {[%clk 0:00:15]} 49. Nb5 {[%clk 0:00:13]}  b2 {[%clk 0:00:14]} 50. Nxc7 {[%clk 0:00:13]}  b1=Q {[%clk 0:00:14]} 51. Kf3 {[%clk 0:00:12]}  Qb7+ {[%clk 0:00:14]} 52. Kf4 {[%clk 0:00:13]}  Qxc7+ {[%clk 0:00:14]} 53. Kg5 {[%clk 0:00:13]}  Kg7 {[%clk 0:00:14]} 54. f4 {[%clk 0:00:14]}  f6# {[%clk 0:00:14]} 0-1

[Event "December 12 Early 2023"]
[Site "https://www.chess.com"]
[Date "2023.12.12"]
[Round "1"]
[White "Pak, Yevgeniy"]
[Black "Materia, Marco"]
[Result "0-1"]
[Board "62"]
[TimeControl "180+1"]
[WhiteFideId "14201712"]
[BlackFideId "45150451"]
[WhiteElo "2469"]
[BlackElo "2834"]
[WhiteTeam "KAZ"]
[BlackTeam "FRA"]
[WhiteClock "0:01:10"]
[BlackClock "0:01:34"]

1. d4 {[%clk 0:02:58]}  Nf6 {[%clk 0:02:59]} 2. c4 {[%clk 0:02:58]}  e6 {[%clk 0:02:59]} 3. Nf3 {[%clk 0:02:56]}  d5 {[%clk 0:02:59]} 4. g3 {[%clk 0:02:57]}  Be7 {[%clk 0:02:59]} 5. Bg2 {[%clk 0:02:57]}  O-O {[%clk 0:02:59]} 6. O-O {[%clk 0:02:58]}  Nbd7 {[%clk 0:02:57]} 7. Nc3 {[%clk 0:02:57]}  c6 {[%clk 0:02:54]} 8. Nd2 {[%clk 0:02:52]}  b6 {[%clk 0:02:32]} 9. b3 {[%clk 0:02:47]}  Bb7 {[%clk 0:02:30]} 10. Bb2 {[%clk 0:02:46]}  c5 {[%clk 0:02:28]} 11. cxd5 {[%clk 0:02:41]}  cxd4 {[%clk 0:02:25]} 12. Nb5 {[%clk 0:02:39]}  Bxd5 {[%clk 0:02:21]} 13. Nxd4 {[%clk 0:02:38]}  Bxg2 {[%clk 0:02:18]} 14. Kxg2 {[%clk 0:02:39]}  Rc8 {[%clk 0:02:16]} 15. N2f3 {[%clk 0:02:30]}  Nc5 {[%clk 0:02:14]} 16. Rc1 {[%clk 0:02:28]}  Qd5 {[%clk 0:02:07]} 17. Nb5 {[%clk 0:02:25]}  Qa8 {[%clk 0:02:05]} 18. Qd2 {[%clk 0:02:15]}  Rfd8 {[%clk 0:02:03]} 19. Qf4 {[%clk 0:02:13]}  a6 {[%clk 0:01:44]} 20. Nc3 {[%clk 0:02:08]}  h6 {[%clk 0:01:40]} 21. Rfd1 {[%clk 0:02:05]}  g5 {[%clk 0:01:36]} 22. Qe3 {[%clk 0:01:50]}  Ng4 {[%clk 0:01:33]} 23. Rxd8+ {[%clk 0:01:10]}  Rxd8 {[%clk 0:01:34]} 0-1

[Event "December 12 Early 2023"]
[Site "https://www.chess.com"]
[Date "2023.12.12"]
[Round "1"]
[White "Berezin, Viktor"]
[Black "Brodsky, David"]
[Result "1-0"]
[Board "64"]
[TimeControl "180+1"]
[WhiteFideId "14107872"]
[BlackFideId "2073250"]
[WhiteElo "2469"]
[BlackElo "2831"]
[WhiteTeam "UKR"]
[BlackTeam "USA"]
[WhiteClock "0:00:16"]
[BlackClock "0:00:01"]

1. d4 {[%clk 0:03:00]}  Nf6 {[%clk 0:02:58]} 2. c4 {[%clk 0:02:57]}  e6 {[%clk 0:02:59]} 3. Nf3 {[%clk 0:02:57]}  a6 {[%clk 0:02:55]} 4. g3 {[%clk 0:02:53]}  b5 {[%clk 0:02:54]} 5. Qb3 {[%clk 0:02:41]}  bxc4 {[%clk 0:02:47]} 6. Qxc4 {[%clk 0:02:42]}  Bb7 {[%clk 0:02:47]} 7. Bg2 {[%clk 0:02:40]}  Be7 {[%clk 0:02:44]} 8. O-O {[%clk 0:02:40]}  O-O {[%clk 0:02:44]} 9. Nc3 {[%clk 0:02:39]}  Nc6 {[%clk 0:02:42]} 10. Bf4 {[%clk 0:02:34]}  a5 {[%clk 0:02:37]} 11. Qd3 {[%clk 0:02:24]}  Nb4 {[%clk 0:02:31]} 12. Qd2 {[%clk 0:02:23]}  Ne4 {[%clk 0:02:28]} 13. Nxe4 {[%clk 0:02:20]}  Bxe4 {[%clk 0:02:29]} 14. a3 {[%clk 0:02:20]}  Nd5 {[%clk 0:02:27]} 15. Rfc1 {[%clk 0:02:13]}  a4 {[%clk 0:02:19]} 16. Ne5 {[%clk 0:02:07]}  Bxg2 {[%clk 0:02:17]} 17. Kxg2 {[%clk 0:02:08]}  Nxf4+ {[%clk 0:02:15]} 18. gxf4 {[%clk 0:02:01]}  Rb8 {[%clk 0:02:12]} 19. Rc4 {[%clk 0:01:57]}  f6 {[%clk 0:01:54]} 20. Nf3 {[%clk 0:01:50]}  Rb3 {[%clk 0:01:47]} 21. Rac1 {[%clk 0:01:46]}  Bd6 {[%clk 0:01:43]} 22. Rxa4 {[%clk 0:01:43]}  Qb8 {[%clk 0:01:42]} 23. Rc2 {[%clk 0:01:43]}  Qb7 {[%clk 0:01:32]} 24. d5 {[%clk 0:00:52]}  exd5 {[%clk 0:00:42]} 25. Nd4 {[%clk 0:00:51]}  Rb6 {[%clk 0:00:41]} 26. Nf5 {[%clk 0:00:50]}  Rb8 {[%clk 0:00:30]} 27. b4 {[%clk 0:00:39]}  Bf8 {[%clk 0:00:28]} 28. Ra5 {[%clk 0:00:38]}  c6 {[%clk 0:00:15]} 29. f3 {[%clk 0:00:39]}  Rb5 {[%clk 0:00:06]} 30. Rxb5 {[%clk 0:00:38]}  Qxb5 {[%clk 0:00:06]} 31. Nd4 {[%clk 0:00:38]}  Qa4 {[%clk 0:00:06]} 32. Rc3 {[%clk 0:00:37]}  Re8 {[%clk 0:00:06]} 33. Re3 {[%clk 0:00:33]}  Rb8 {[%clk 0:00:03]} 34. Nf5 {[%clk 0:00:32]}  Kh8 {[%clk 0:00:03]} 35. Ne7 {[%clk 0:00:21]}  Qb5 {[%clk 0:00:01]} 36. f5 {[%clk 0:00:19]}  c5 {[%clk 0:00:01]} 37. Qxd5 {[%clk 0:00:16]}  cxb4 {[%clk 0:00:01]} 38. Qg8# {[%clk 0:00:16]} 1-0

[Event "December 12 Early 2023"]
[Site "https://www.chess.com"]
[Date "2023.12.12"]
[Round "1"]
[White "Klymchuk, Andriy"]
[Black "Kiremitciyan, Ari"]
[Result "1-0"]
[Board "65"]
[TimeControl "180+1"]
[WhiteFideId "14140063"]
[BlackFideId "6373445"]
[WhiteElo "2823"]
[BlackElo "2468"]
[WhiteTeam "UKR"]
[BlackTeam "TUR"]
[WhiteClock "0:01:36"]
[BlackClock "0:00:00"]

1. e4 {[%clk 0:03:00]}  c6 {[%clk 0:03:00]} 2. d4 {[%clk 0:03:00]}  d5 {[%clk 0:03:00]} 3. e5 {[%clk 0:03:00]}  Bf5 {[%clk 0:03:00]} 4. Nc3 {[%clk 0:03:00]}  e6 {[%clk 0:03:00]} 5. g4 {[%clk 0:02:59]}  Bg6 {[%clk 0:03:00]} 6. Nge2 {[%clk 0:03:00]}  c5 {[%clk 0:02:57]} 7. h4 {[%clk 0:02:59]}  h5 {[%clk 0:02:56]} 8. Nf4 {[%clk 0:02:59]}  Bh7 {[%clk 0:02:56]} 9. g5 {[%clk 0:02:59]}  cxd4 {[%clk 0:02:51]} 10. Nb5 {[%clk 0:02:58]}  Nc6 {[%clk 0:02:45]} 11. Qxh5 {[%clk 0:02:57]}  Bb4+ {[%clk 0:02:00]} 12. c3 {[%clk 0:02:55]}  dxc3 {[%clk 0:01:58]} 13. bxc3 {[%clk 0:02:55]}  a6 {[%clk 0:01:07]} 14. Nxe6 {[%clk 0:02:46]}  axb5 {[%clk 0:01:07]} 15. Nxd8 {[%clk 0:02:42]}  Bxc3+ {[%clk 0:01:07]} 16. Bd2 {[%clk 0:02:37]}  Bxa1 {[%clk 0:01:04]} 17. Qxf7+ {[%clk 0:02:29]}  Kxd8 {[%clk 0:01:04]} 18. Qxb7 {[%clk 0:02:29]}  Rc8 {[%clk 0:00:48]} 19. Bh3 {[%clk 0:02:16]}  Rc7 {[%clk 0:00:37]} 20. Qa8+ {[%clk 0:02:07]}  Ke7 {[%clk 0:00:36]} 21. O-O {[%clk 0:01:57]}  Bd3 {[%clk 0:00:29]} 22. Rxa1 {[%clk 0:01:45]}  Rxh4 {[%clk 0:00:24]} 23. Bg2 {[%clk 0:01:40]}  Rg4 {[%clk 0:00:00]} 24. f3 {[%clk 0:01:36]} 1-0

[Event "December 12 Early 2023"]
[Site "https://www.chess.com"]
[Date "2023.12.12"]
[Round "1"]
[White "Mikhailovsky, Vladimir"]
[Black "Rodriguez Fontecha, Marcos"]
[Result "1-0"]
[Board "67"]
[TimeControl "180+1"]
[WhiteFideId "34105414"]
[BlackFideId "2256576"]
[WhiteElo "2816"]
[BlackElo "2463"]
[WhiteTeam "RUS"]
[BlackTeam "ESP"]
[WhiteClock "0:00:01"]
[BlackClock "0:00:00"]

1. c4 {[%clk 0:03:00]}  c6 {[%clk 0:02:57]} 2. e4 {[%clk 0:02:59]}  d5 {[%clk 0:02:57]} 3. exd5 {[%clk 0:02:59]}  cxd5 {[%clk 0:02:58]} 4. cxd5 {[%clk 0:02:59]}  Nf6 {[%clk 0:02:59]} 5. Qa4+ {[%clk 0:02:59]}  Nbd7 {[%clk 0:02:58]} 6. Nc3 {[%clk 0:02:59]}  g6 {[%clk 0:02:58]} 7. Nf3 {[%clk 0:02:58]}  Bg7 {[%clk 0:02:58]} 8. Bc4 {[%clk 0:02:59]}  O-O {[%clk 0:02:59]} 9. d3 {[%clk 0:03:00]}  Nb6 {[%clk 0:02:54]} 10. Qb3 {[%clk 0:02:59]}  Bg4 {[%clk 0:02:55]} 11. Ne5 {[%clk 0:02:58]}  Bf5 {[%clk 0:02:54]} 12. O-O {[%clk 0:02:56]}  Rc8 {[%clk 0:02:51]} 13. Re1 {[%clk 0:02:56]}  Nfd7 {[%clk 0:02:46]} 14. Bf4 {[%clk 0:02:44]}  Nc5 {[%clk 0:02:41]} 15. Qa3 {[%clk 0:02:16]}  Bxe5 {[%clk 0:02:18]} 16. Bxe5 {[%clk 0:02:00]}  Bxd3 {[%clk 0:02:16]} 17. Bb3 {[%clk 0:01:25]}  Ba6 {[%clk 0:02:05]} 18. Bd4 {[%clk 0:01:17]}  Nxb3 {[%clk 0:02:00]} 19. axb3 {[%clk 0:01:16]}  Nxd5 {[%clk 0:01:57]} 20. Rad1 {[%clk 0:01:05]}  e6 {[%clk 0:01:19]} 21. Ne4 {[%clk 0:00:44]}  Qh4 {[%clk 0:00:55]} 22. Qd6 {[%clk 0:00:35]}  Rc6 {[%clk 0:00:42]} 23. Qa3 {[%clk 0:00:13]}  f5 {[%clk 0:00:29]} 24. Nc5 {[%clk 0:00:09]}  Re8 {[%clk 0:00:29]} 25. Be5 {[%clk 0:00:05]}  Qb4 {[%clk 0:00:22]} 26. Qa1 {[%clk 0:00:03]}  Qxc5 {[%clk 0:00:21]} 27. Bd4 {[%clk 0:00:03]}  Qb5 {[%clk 0:00:21]} 28. b4 {[%clk 0:00:03]}  Qxb4 {[%clk 0:00:20]} 29. b3 {[%clk 0:00:04]}  Qxb3 {[%clk 0:00:15]} 30. Bh8 {[%clk 0:00:04]}  Rc7 {[%clk 0:00:14]} 31. Be5 {[%clk 0:00:04]}  Rd7 {[%clk 0:00:13]} 32. h4 {[%clk 0:00:04]}  Qb4 {[%clk 0:00:11]} 33. h5 {[%clk 0:00:03]}  Qg4 {[%clk 0:00:08]} 34. h6 {[%clk 0:00:03]}  Qg5 {[%clk 0:00:08]} 35. Bf4 {[%clk 0:00:03]}  Qe7 {[%clk 0:00:06]} 36. Be5 {[%clk 0:00:01]}  Qf7 {[%clk 0:00:03]} 37. Bb2 {[%clk 0:00:02]}  Nb4 {[%clk 0:00:02]} 38. Qa3 {[%clk 0:00:01]}  Nc2 {[%clk 0:00:01]} 39. Qc3 {[%clk 0:00:02]}  e5 {[%clk 0:00:00]} 40. Rxd7 {[%clk 0:00:01]} 1-0

[Event "December 12 Early 2023"]
[Site "https://www.chess.com"]
[Date "2023.12.12"]
[Round "1"]
[White "Mazurkiewicz, Michal"]
[Black "Kushagra Mohan"]
[Result "0-1"]
[Board "70"]
[TimeControl "180+1"]
[WhiteFideId "1124943"]
[BlackFideId "25033638"]
[WhiteElo "2457"]
[BlackElo "2810"]
[WhiteTeam "POL"]
[BlackTeam "IND"]
[WhiteClock "0:00:15"]
[BlackClock "0:02:14"]

1. e4 {[%clk 0:03:00]}  e5 {[%clk 0:03:00]} 2. Nf3 {[%clk 0:03:00]}  Nc6 {[%clk 0:03:00]} 3. Bb5 {[%clk 0:03:00]}  a6 {[%clk 0:03:00]} 4. Bxc6 {[%clk 0:03:00]}  dxc6 {[%clk 0:03:00]} 5. O-O {[%clk 0:03:01]}  Qf6 {[%clk 0:03:01]} 6. d4 {[%clk 0:03:00]}  exd4 {[%clk 0:03:01]} 7. e5 {[%clk 0:03:01]}  Qg6 {[%clk 0:03:00]} 8. Qxd4 {[%clk 0:02:49]}  Bd7 {[%clk 0:03:00]} 9. Nc3 {[%clk 0:02:48]}  O-O-O {[%clk 0:03:01]} 10. Qh4 {[%clk 0:02:42]}  Be7 {[%clk 0:02:52]} 11. Bg5 {[%clk 0:02:32]}  f6 {[%clk 0:02:51]} 12. exf6 {[%clk 0:02:30]}  Nxf6 {[%clk 0:02:51]} 13. Ne5 {[%clk 0:02:25]}  Qxc2 {[%clk 0:02:51]} 14. Nf7 {[%clk 0:02:18]}  Qxb2 {[%clk 0:02:52]} 15. Nxh8 {[%clk 0:02:05]}  Qxc3 {[%clk 0:02:47]} 16. Nf7 {[%clk 0:02:05]}  Rf8 {[%clk 0:02:47]} 17. Rfc1 {[%clk 0:02:05]}  Qa5 {[%clk 0:02:42]} 18. Rab1 {[%clk 0:01:55]}  Rxf7 {[%clk 0:02:38]} 19. Bxf6 {[%clk 0:01:27]}  Bxf6 {[%clk 0:02:38]} 20. Qxh7 {[%clk 0:01:20]}  Rf8 {[%clk 0:02:36]} 21. Qe4 {[%clk 0:00:45]}  Bf5 {[%clk 0:02:30]} 22. Qb4 {[%clk 0:00:43]}  Qxb4 {[%clk 0:02:29]} 23. Rxb4 {[%clk 0:00:43]}  Re8 {[%clk 0:02:29]} 24. g4 {[%clk 0:00:42]}  Bd7 {[%clk 0:02:24]} 25. f4 {[%clk 0:00:40]}  Bxg4 {[%clk 0:02:23]} 26. Kf2 {[%clk 0:00:35]}  Bh4+ {[%clk 0:02:22]} 27. Kf1 {[%clk 0:00:35]}  Bh3+ {[%clk 0:02:15]} 28. Kg1 {[%clk 0:00:35]}  Re2 {[%clk 0:02:15]} 29. f5 {[%clk 0:00:33]}  Bf2+ {[%clk 0:02:15]} 30. Kh1 {[%clk 0:00:31]}  Bc5 {[%clk 0:02:14]} 31. Rxc5 {[%clk 0:00:15]}  Re1# {[%clk 0:02:14]} 0-1

[Event "December 12 Early 2023"]
[Site "https://www.chess.com"]
[Date "2023.12.12"]
[Round "1"]
[White "Korchmar, Vasiliy"]
[Black "Grunberg, Mihai-Lucian"]
[Result "0-1"]
[Board "71"]
[TimeControl "180+1"]
[WhiteFideId "24131750"]
[BlackFideId "1204149"]
[WhiteElo "2807"]
[BlackElo "2454"]
[WhiteTeam "RUS"]
[BlackTeam "ROU"]
[WhiteClock "0:00:00"]
[BlackClock "0:00:21"]

1. e4 {[%clk 0:03:00]}  Nf6 {[%clk 0:02:52]} 2. e5 {[%clk 0:03:00]}  Nd5 {[%clk 0:02:52]} 3. d4 {[%clk 0:03:00]}  d6 {[%clk 0:02:53]} 4. Nf3 {[%clk 0:03:00]}  dxe5 {[%clk 0:02:53]} 5. Nxe5 {[%clk 0:03:00]}  c6 {[%clk 0:02:54]} 6. Bd3 {[%clk 0:02:38]}  Nd7 {[%clk 0:02:52]} 7. Nf3 {[%clk 0:02:37]}  N7f6 {[%clk 0:02:51]} 8. h3 {[%clk 0:02:36]}  Nb4 {[%clk 0:02:45]} 9. Bc4 {[%clk 0:02:32]}  Bf5 {[%clk 0:02:45]} 10. Bb3 {[%clk 0:02:28]}  a5 {[%clk 0:02:38]} 11. a4 {[%clk 0:02:18]}  e6 {[%clk 0:02:38]} 12. O-O {[%clk 0:02:17]}  Be7 {[%clk 0:02:34]} 13. Bg5 {[%clk 0:02:11]}  O-O {[%clk 0:02:32]} 14. c3 {[%clk 0:02:10]}  Nbd5 {[%clk 0:02:31]} 15. Nbd2 {[%clk 0:02:06]}  Ne4 {[%clk 0:02:30]} 16. Bxe7 {[%clk 0:02:04]}  Qxe7 {[%clk 0:02:30]} 17. Nxe4 {[%clk 0:02:02]}  Bxe4 {[%clk 0:02:30]} 18. Re1 {[%clk 0:02:03]}  Bxf3 {[%clk 0:02:26]} 19. Qxf3 {[%clk 0:02:03]}  Rfd8 {[%clk 0:02:24]} 20. Re5 {[%clk 0:02:02]}  Qc7 {[%clk 0:02:16]} 21. Rae1 {[%clk 0:01:55]}  Qb6 {[%clk 0:02:13]} 22. Qd1 {[%clk 0:01:53]}  c5 {[%clk 0:02:02]} 23. dxc5 {[%clk 0:01:51]}  Qc6 {[%clk 0:01:50]} 24. Bxd5 {[%clk 0:01:48]}  exd5 {[%clk 0:01:46]} 25. Qd4 {[%clk 0:01:41]}  h6 {[%clk 0:01:45]} 26. Re7 {[%clk 0:01:31]}  Rac8 {[%clk 0:01:40]} 27. b4 {[%clk 0:01:22]}  Rd7 {[%clk 0:01:15]} 28. Re8+ {[%clk 0:01:04]}  Rxe8 {[%clk 0:01:15]} 29. Rxe8+ {[%clk 0:01:05]}  Kh7 {[%clk 0:01:15]} 30. Qd3+ {[%clk 0:01:04]}  Qg6 {[%clk 0:01:05]} 31. Qxg6+ {[%clk 0:01:03]}  Kxg6 {[%clk 0:01:06]} 32. Kf1 {[%clk 0:00:42]}  d4 {[%clk 0:01:03]} 33. cxd4 {[%clk 0:00:35]}  Rxd4 {[%clk 0:01:02]} 34. b5 {[%clk 0:00:18]}  Rxa4 {[%clk 0:01:01]} 35. Ra8 {[%clk 0:00:04]}  Rc4 {[%clk 0:00:56]} 36. c6 {[%clk 0:00:03]}  bxc6 {[%clk 0:00:53]} 37. Ra6 {[%clk 0:00:04]}  Kf5 {[%clk 0:00:46]} 38. bxc6 {[%clk 0:00:04]}  a4 {[%clk 0:00:37]} 39. g4+ {[%clk 0:00:02]}  Ke6 {[%clk 0:00:36]} 40. Ke2 {[%clk 0:00:02]}  Kd6 {[%clk 0:00:25]} 41. c7+ {[%clk 0:00:01]}  Kxc7 {[%clk 0:00:25]} 42. Ra7+ {[%clk 0:00:01]}  Kb6 {[%clk 0:00:25]} 43. Rxf7 {[%clk 0:00:02]}  a3 {[%clk 0:00:23]} 44. Rf3 {[%clk 0:00:02]}  Ra4 {[%clk 0:00:21]} 45. Rb3+ {[%clk 0:00:02]}  Kc5 {[%clk 0:00:21]} 46. Rb1 {[%clk 0:00:02]}  a2 {[%clk 0:00:21]} 47. Ra1 {[%clk 0:00:02]}  Kc4 {[%clk 0:00:21]} 48. Kd2 {[%clk 0:00:02]}  Kb3 {[%clk 0:00:21]} 49. Kc1 {[%clk 0:00:02]}  Rc4+ {[%clk 0:00:21]} 50. Kd2 {[%clk 0:00:00]}  Kb2 {[%clk 0:00:21]} 0-1

[Event "December 12 Early 2023"]
[Site "https://www.chess.com"]
[Date "2023.12.12"]
[Round "1"]
[White "Mizzi, Jack"]
[Black "Dragnev, Valentin"]
[Result "0-1"]
[Board "72"]
[TimeControl "180+1"]
[WhiteFideId "5602521"]
[BlackFideId "1634852"]
[WhiteElo "2451"]
[BlackElo "2804"]
[WhiteTeam "MLT"]
[BlackTeam "AUT"]
[WhiteClock "0:00:17"]
[BlackClock "0:00:50"]

1. d4 {[%clk 0:03:00]}  d5 {[%clk 0:02:57]} 2. c4 {[%clk 0:03:00]}  c6 {[%clk 0:02:57]} 3. Nf3 {[%clk 0:02:58]}  Nf6 {[%clk 0:02:57]} 4. Nbd2 {[%clk 0:02:54]}  Bf5 {[%clk 0:02:55]} 5. Nh4 {[%clk 0:02:53]}  Be4 {[%clk 0:02:51]} 6. e3 {[%clk 0:02:51]}  e6 {[%clk 0:02:48]} 7. Be2 {[%clk 0:02:41]}  h6 {[%clk 0:02:44]} 8. Qb3 {[%clk 0:02:36]}  Qc7 {[%clk 0:02:38]} 9. h3 {[%clk 0:02:16]}  Bh7 {[%clk 0:02:34]} 10. Nhf3 {[%clk 0:02:09]}  Be7 {[%clk 0:02:33]} 11. Ne5 {[%clk 0:02:05]}  Nbd7 {[%clk 0:02:33]} 12. f4 {[%clk 0:02:02]}  Nxe5 {[%clk 0:02:33]} 13. fxe5 {[%clk 0:01:58]}  Ne4 {[%clk 0:02:31]} 14. Nxe4 {[%clk 0:01:52]}  Bxe4 {[%clk 0:02:32]} 15. Bf3 {[%clk 0:01:46]}  Bh4+ {[%clk 0:02:30]} 16. Ke2 {[%clk 0:01:45]}  Bh7 {[%clk 0:02:24]} 17. cxd5 {[%clk 0:01:41]}  exd5 {[%clk 0:02:24]} 18. Bd2 {[%clk 0:01:39]}  O-O {[%clk 0:02:24]} 19. Rac1 {[%clk 0:01:35]}  Qd7 {[%clk 0:02:24]} 20. Rhf1 {[%clk 0:01:28]}  f6 {[%clk 0:02:24]} 21. Bg4 {[%clk 0:01:25]}  f5 {[%clk 0:02:00]} 22. Bf3 {[%clk 0:01:24]}  Kh8 {[%clk 0:02:01]} 23. Bb4 {[%clk 0:01:22]}  Be7 {[%clk 0:01:59]} 24. g4 {[%clk 0:01:12]}  f4 {[%clk 0:01:56]} 25. Qa3 {[%clk 0:00:59]}  Bxb4 {[%clk 0:01:31]} 26. Qxb4 {[%clk 0:01:00]}  fxe3 {[%clk 0:01:32]} 27. Qc3 {[%clk 0:00:56]}  Qe7 {[%clk 0:00:57]} 28. Qxe3 {[%clk 0:00:51]}  Qb4 {[%clk 0:00:57]} 29. b3 {[%clk 0:00:32]}  Qb5+ {[%clk 0:00:50]} 30. Kd2 {[%clk 0:00:31]}  Qa5+ {[%clk 0:00:51]} 31. Qc3 {[%clk 0:00:27]}  Qxa2+ {[%clk 0:00:51]} 32. Ke3 {[%clk 0:00:27]}  Qh2 {[%clk 0:00:49]} 33. Rh1 {[%clk 0:00:21]}  Rxf3+ {[%clk 0:00:48]} 34. Kxf3 {[%clk 0:00:20]}  Rf8+ {[%clk 0:00:49]} 35. Ke3 {[%clk 0:00:17]}  Qf2# {[%clk 0:00:50]} 0-1

[Event "December 12 Early 2023"]
[Site "https://www.chess.com"]
[Date "2023.12.12"]
[Round "1"]
[White "Khripachenko, Alexander"]
[Black "Bolat, Inayat"]
[Result "1-0"]
[Board "73"]
[TimeControl "180+1"]
[WhiteFideId "54184975"]
[BlackFideId "13733125"]
[WhiteElo "2802"]
[BlackElo "2451"]
[WhiteTeam "FID"]
[BlackTeam "KAZ"]
[WhiteClock "0:00:17"]
[BlackClock "0:00:00"]

1. e4 {[%clk 0:02:59]}  e5 {[%clk 0:02:54]} 2. Nf3 {[%clk 0:02:59]}  Nc6 {[%clk 0:02:54]} 3. Bb5 {[%clk 0:02:58]}  a6 {[%clk 0:02:47]} 4. Ba4 {[%clk 0:02:58]}  d6 {[%clk 0:02:48]} 5. c3 {[%clk 0:02:58]}  Bd7 {[%clk 0:02:47]} 6. d4 {[%clk 0:02:57]}  g6 {[%clk 0:02:47]} 7. O-O {[%clk 0:02:56]}  Bg7 {[%clk 0:02:47]} 8. Re1 {[%clk 0:02:56]}  Nf6 {[%clk 0:02:42]} 9. Bxc6 {[%clk 0:02:18]}  Bxc6 {[%clk 0:02:33]} 10. dxe5 {[%clk 0:02:18]}  Nxe4 {[%clk 0:02:05]} 11. exd6 {[%clk 0:02:07]}  Qxd6 {[%clk 0:01:56]} 12. Qxd6 {[%clk 0:02:06]}  cxd6 {[%clk 0:01:57]} 13. Nbd2 {[%clk 0:02:02]}  d5 {[%clk 0:01:48]} 14. Nb3 {[%clk 0:02:01]}  O-O {[%clk 0:01:44]} 15. Nfd4 {[%clk 0:02:02]}  a5 {[%clk 0:01:36]} 16. f3 {[%clk 0:02:01]}  Nd6 {[%clk 0:01:28]} 17. a4 {[%clk 0:01:41]}  Nc4 {[%clk 0:01:24]} 18. Kf2 {[%clk 0:01:41]}  Rfe8 {[%clk 0:01:20]} 19. Rxe8+ {[%clk 0:01:40]}  Rxe8 {[%clk 0:01:19]} 20. Nc5 {[%clk 0:01:40]}  b6 {[%clk 0:00:47]} 21. Nd3 {[%clk 0:01:36]}  Bd7 {[%clk 0:00:45]} 22. b3 {[%clk 0:01:36]}  Nd6 {[%clk 0:00:31]} 23. Be3 {[%clk 0:01:36]}  Nf5 {[%clk 0:00:24]} 24. Re1 {[%clk 0:01:10]}  h5 {[%clk 0:00:08]} 25. Nf4 {[%clk 0:00:28]}  Bxd4 {[%clk 0:00:04]} 26. Bxd4 {[%clk 0:00:27]}  Rxe1 {[%clk 0:00:03]} 27. Kxe1 {[%clk 0:00:27]}  Nxd4 {[%clk 0:00:03]} 28. cxd4 {[%clk 0:00:28]}  Bc6 {[%clk 0:00:04]} 29. Kd2 {[%clk 0:00:27]}  Kg7 {[%clk 0:00:04]} 30. Nd3 {[%clk 0:00:27]}  Kf6 {[%clk 0:00:05]} 31. Ke3 {[%clk 0:00:28]}  Kf5 {[%clk 0:00:04]} 32. h4 {[%clk 0:00:27]}  f6 {[%clk 0:00:04]} 33. Nf4 {[%clk 0:00:26]}  Bb7 {[%clk 0:00:04]} 34. Ne2 {[%clk 0:00:18]}  Bc6 {[%clk 0:00:03]} 35. Ng3+ {[%clk 0:00:18]}  Ke6 {[%clk 0:00:04]} 36. Ne2 {[%clk 0:00:16]}  b5 {[%clk 0:00:04]} 37. axb5 {[%clk 0:00:16]}  Bxb5 {[%clk 0:00:05]} 38. Nf4+ {[%clk 0:00:17]}  Kf5 {[%clk 0:00:02]} 39. Nxd5 {[%clk 0:00:17]}  a4 {[%clk 0:00:00]} 40. Nc3 {[%clk 0:00:17]} 1-0